Cogmind - Beta 10.2 *** ADVENTURER MODE // 2020.11.21 @ 05:16:51 // Halloween2020/ForbiddenLore Player: Deep Beef Result: Destroyed by G-73 Enforcer with Phase Gun Performance ------------- Evolutions (7) 3500 Regions Visited (15) 3000 Robots Destroyed (235) 1175 Value Destroyed (10476) 10476 Prototype IDs (21) 420 Alien Tech Used (0) 0 Bonus (4420) 4420 TOTAL SCORE: 22991 Bonus ------- Triggered Max Security 1000 High Alert Combat Kills 1144 Follower Combat Kills 1267 Network Hubs Disabled 400 Aligned with FarCom 300 Met R17 at Cetus 500 Friendly Fire -191 Cogmind --------- Core Integrity 0/1300 Matter 47/300 Energy 100/100 System Corruption 22% Temperature Cool (0) Movement Core (550) Ox10 Location -3/Quarantine Parts ------- > --- POWER (2) -------- (None) > --- PROPULSION (4) --- (None) > --- UTILITY (11) ----- High-capacity Storage Unit Advanced Target Analyzer > --- WEAPON (4) ------- (None) > --- INVENTORY (12) --- Flexi-carbon Leg Flexi-carbon Leg Biometal Leg Potential Leg Potential Leg High-capacity Storage Unit System Backup Module Gamma Rifle Linear Accelerator Improved Remote Datajack Lance Force Lance Peak State ------------ > --- POWER ------------ Graviton Reactor Graviton Reactor > --- PROPULSION ------- Armored Heavy Treads Centrium Heavy Treads > --- UTILITY ---------- High-capacity Storage Unit High-capacity Storage Unit High-capacity Storage Unit High-capacity Storage Unit Compact Matter Pod Advanced Target Analyzer Advanced Core Analyzer Centrium Medium Armor Plating Improved Hacking Suite Improved System Shield Improved Component Analysis Suite > --- WEAPON ----------- KE Penetrator KE Penetrator Centrium Greatsword > --- INVENTORY -------- Light Angular Momentum Engine Quantum Reactor Quantum Reactor Centrium Heavy Treads Flexi-carbon Leg Flexi-carbon Leg Biometal Leg Potential Leg Potential Leg Advanced Heat Sink High-capacity Storage Unit Energy Well Improved Phase Shifter Centrium Medium Armor Plating System Backup Module Tesla Rifle Gamma Rifle Gamma Rifle Phase Gun Phase Gun Phase Gun Advanced Variable Charge Gun Gauss Rifle Coil Gun Hypervelocity Coil Gun Improved KE Penetrator Improved KE Penetrator Enhanced Gauss Cannon Linear Accelerator Long-range Missile Launcher Improved Remote Datajack Lance Force Lance [Rating: 150] Favorites ----------- Power Light Angular Momentum Engine Engine Light Angular Momentum Engine Power Core Micro Fission Core Reactor Quantum Reactor Propulsion Medium Treads Treads Medium Treads Leg Potential Leg Wheel Compact Wheel Utility High-capacity Storage Unit Device Advanced Heat Sink Storage High-capacity Storage Unit Processor Advanced Terrain Scan Processor Hackware Improved System Shield Protection Centrium Medium Armor Plating Weapon Gauss Rifle Energy Gun EM Pulse Gun Energy Cannon Light EM Pulse Cannon Ballistic Gun Gauss Rifle Ballistic Cannon Enhanced Gauss Cannon Launcher Improved Proton Missile Launcher Special Weapon Mining Laser Slashing Weapon Power Sword Piercing Weapon Lance Build | -11 -10 -10 -10 -9 -8 -7 -6 -6 -6 -6 -6 -5 -4 -3 -3 ------- Run | Scr Mat Min Exi Min Mat Fac Fac Ext Cet Arc Hub Fac Fac Res Qua Slots Evolved 14 | . . . . . 4 2 2 . . . . 2 2 2 . Power 1 | . . . . . . . . . . . . . . 1 . Propulsion 2 | . . . . . 1 . . . . . . 1 . . . Utility 9 | . . . . . 3 1 2 . . . . 1 1 1 . Weapon 2 | . . . . . . 1 . . . . . . 1 . . Parts Attached 231 | 7 17 3 5 1 9 23 34 12 32 6 12 21 2 20 27 Power 23 | 1 1 1 . . . 3 1 1 2 . 2 2 . 6 3 Engine 9 | 1 1 . . . . 2 1 1 . . 1 . . 1 1 Core 4 | . . 1 . . . 1 . . . . . 2 . . . Reactor 10 | . . . . . . . . . 2 . 1 . . 5 2 Propulsion 28 | 2 2 2 2 . 3 2 3 3 2 2 1 2 . . 2 Treads 25 | 1 2 2 1 . 3 2 3 2 2 2 1 2 . . 2 Leg 1 | . . . 1 . . . . . . . . . . . . Wheel 2 | 1 . . . . . . . 1 . . . . . . . Hover . | . . . . . . . . . . . . . . . . Flight . | . . . . . . . . . . . . . . . . Utility 58 | 1 3 . 2 . 3 5 9 3 7 4 2 7 1 5 6 Device 20 | . . . . . . 1 5 1 1 1 1 6 . 2 2 Storage 13 | 1 3 . 2 . 1 2 . . 1 1 . . . . 2 Processor 6 | . . . . . 1 . 2 . . . . . 1 2 . Hackware 2 | . . . . . . . . 1 . 1 . . . . . Protection 17 | . . . . . 1 2 2 1 5 1 1 1 . 1 2 Artifact . | . . . . . . . . . . . . . . . . Weapon 122 | 3 11 . 1 1 3 13 21 5 21 . 7 10 1 9 16 Energy Gun 21 | 2 2 . 1 . 2 3 1 . 3 . . . . 1 6 Energy Cannon 13 | . 1 . . 1 1 3 3 . 4 . . . . . . Ballistic Gun 63 | 1 5 . . . . 6 11 3 11 . 5 8 . 6 7 Ballistic Cannon 1 | . . . . . . . . . . . . . . . 1 Launcher 5 | . . . . . . . 1 1 2 . . . . . 1 Special Weapon 7 | . 3 . . . . 1 . 1 . . . 2 . . . Impact Weapon . | . . . . . . . . . . . . . . . . Slashing Weapon 5 | . . . . . . . . . 1 . 2 . . 1 1 Piercing Weapon 7 | . . . . . . . 5 . . . . . 1 1 . Special Melee Weapon . | . . . . . . . . . . . . . . . . Unidentified Prototypes 11 | . . . 1 . 1 . . . 4 . . 1 . 4 . Parts Lost 41 | . . 1 . . . . 3 . 3 . 3 . . 2 29 Power 5 | . . . . . . . . . . . 1 . . . 4 Propulsion 4 | . . . . . . . . . 1 . . . . . 3 Utility 15 | . . . . . . . 3 . 1 . . . . 1 10 Weapon 17 | . . 1 . . . . . . 1 . 2 . . 1 12 Highest Loss Streak 26 | . . 1 . . . . 2 . 2 . 2 . . 2 26 Average Slot Usage (%) 93 | . 99 94 88 100 98 100 97 89 90 92 92 86 84 89 70 Engine 3 | . 14 . . . . 3 6 6 . . 1 . . . . Core 3 | . . 13 14 14 9 3 . . . . . 4 5 1 . Reactor 1 | . . . . . . . . . 5 6 4 . . 6 7 Treads 17 | . 20 28 27 28 26 23 20 19 12 12 13 11 10 9 7 Device 6 | . . . . . . 7 15 2 4 6 6 9 10 12 4 Storage 23 | . 27 28 28 28 27 23 20 20 25 26 26 23 21 19 20 Processor 3 | . . . . . 8 7 7 6 1 . . . . 4 6 Hackware 4 | . . . . . . . . 4 6 7 13 11 10 9 6 Protection 5 | . . . . . 9 7 6 8 11 11 6 5 5 4 2 Energy Gun 2 | . 11 8 2 14 6 3 . . 4 . . . . . . Energy Cannon 1 | . . . . 6 11 3 2 . . . . . . . . Ballistic Gun 15 | . 13 14 14 7 . 15 16 18 12 20 18 16 15 18 8 Naked Turns . | . . . . . . . . . . . . . . . . Heaviest Build 191 | 13 43 41 73 75 94 127 139 143 175 175 170 174 163 191 188 Greatest Support 160 | 16 43 43 46 46 69 78 84 76 110 103 108 160 150 150 150 Greatest Overweight (x) 47 | . 2 . 2 1 1 1 1 47 2 2 1 1 1 1 47 Average Overweight (x) . | . . . . 1 1 1 1 1 1 1 1 . 1 1 1 Largest Inventory Capacity 36 | 6 16 16 20 20 26 28 28 28 36 36 36 36 36 36 36 Average Capacity 28 | 5 14 16 17 20 25 27 28 28 35 36 36 36 36 36 35 Most Carried 36 | 6 16 16 20 20 21 28 28 28 36 36 36 36 36 36 36 Average Carried 27 | 3 12 15 17 19 18 27 26 27 34 35 35 35 35 35 30 Final Capacity 36 | 6 16 16 20 20 26 28 28 28 36 36 36 36 36 36 12 Final Carried 36 | 6 16 16 20 20 21 28 27 28 36 36 33 36 35 36 12 Class Distribution -------------------- 24% | Hauler-Skirmisher 16% | Scavenger-Skirmisher 15% | Hauler-Mutant 14% | Hauler-Tank 12% | Mutant 4% | Scavenger-Tank 3% | Commander-Tank 3% | Commander-Mutant Dominant Class ---------------- Mutant | -10/Materials Mutant | -10/Mines Mutant | -10/Exiles Hauler-Mutant | -9/Mines Hauler-Mutant | -8/Materials Hauler-Skirmisher | -7/Factory Hauler-Tank | -6/Factory Hauler-Skirmisher | -6/Extension Hauler-Tank | -6/Cetus Scavenger-Tank | -6/Archives Scavenger-Skirmisher | -6/Hub_04(d) Scavenger-Skirmisher | -5/Factory Commander-Mutant | -4/Factory Scavenger-Skirmisher | -3/Research Hauler-Mutant | -3/Quarantine Resources | -11 -10 -10 -10 -9 -8 -7 -6 -6 -6 -6 -6 -5 -4 -3 -3 ----------- Run | Scr Mat Min Exi Min Mat Fac Fac Ext Cet Arc Hub Fac Fac Res Qua Matter Collected 6746 | 207 320 93 . 60 90 590 915 612 597 356 795 1328 10 468 305 Remotely . | . . . . . . . . . . . . . . . . Salvage Created 11548 | . 483 206 . 53 210 971 1178 990 1346 595 1068 2053 53 1185 1157 Parts 607 | . 35 14 . 4 18 54 71 33 80 40 57 109 4 65 23 Haulers Intercepted 5 | . 2 . . . . 1 . . . . . 2 . . . Recyclers Shooed 1 | . . . . . . . . 1 . . . . . . . Parts Field Recycled . | . . . . . . . . . . . . . . . . Retrieved Matter . | . . . . . . . . . . . . . . . . Parts Self-Destructed . | . . . . . . . . . . . . . . . . Prevented . | . . . . . . . . . . . . . . . . Kills | -11 -10 -10 -10 -9 -8 -7 -6 -6 -6 -6 -6 -5 -4 -3 -3 ------- Run | Scr Mat Min Exi Min Mat Fac Fac Ext Cet Arc Hub Fac Fac Res Qua Combat Hostiles Destroyed 165 | . 11 9 . 3 3 14 17 10 23 4 14 25 1 13 18 Melee 5 | . . . . . . . . . . . . . 1 . 4 Guns 141 | . 10 9 . 1 . 12 16 10 17 4 14 25 . 13 10 Cannons 10 | . . . . 2 3 . 1 . . . . . . . 4 AOE 2 | . 1 . . . . 1 . . . . . . . . . Classes Destroyed 16 | . 4 . . . 1 5 1 . 1 . . 1 . 1 2 Worker 16 | . . . . . . 3 2 1 . . 3 3 . 4 . Builder 5 | . . . . . . 2 1 . . . . 2 . . . Hauler 5 | . 2 . . . . 1 . . . . . 2 . . . Recycler 5 | . . . . . . . 1 3 . . . . . 1 . Carrier 1 | . . . . . . . . . . . . 1 . . . Operator 15 | . . . . . . 2 1 2 . 7 1 1 . 1 . Watcher 22 | . 3 . . . 1 2 4 . 2 . 4 6 . . . Swarmer 30 | . 6 7 . 3 . . 4 1 8 . . . . 1 . Saboteur 3 | . . . . . . . . . . . . . . . 3 Grunt 50 | . 5 2 . . . 6 1 6 2 . 7 8 . 6 7 Brawler 3 | . . . . . . . . . 1 . . . . . 2 Duelist 4 | . . . . . . . . . . . . . . 1 3 Protector 1 | . . . . . . . . . . . . . . . 1 Sentry 20 | . . . . . 3 2 3 3 . 4 4 1 . . . Hunter 11 | . . . . . . 2 1 . 3 . 1 4 . . . Programmer 36 | . . . . . . 4 8 . 1 . 2 12 1 6 2 Cetus Guard 8 | . . . . . . . . . 8 . . . . . . Best Kill Streak 10 | . 5 3 . 3 1 5 7 3 8 4 4 5 1 10 7 Combat Bots Only 7 | . 3 3 . 3 1 4 5 3 4 1 3 3 1 5 7 Max Kills in Single Turn 3 | . 2 1 . 1 1 2 2 2 3 1 3 2 1 3 2 Gunslinging 2 | . 1 . . . . . 1 . 2 . 1 . . 1 . Exploded 1 | . 1 . . . . 1 . . . . . . . . . Melee 1 | . . . . . . . . . . . . . 1 . 1 Uniques/NPCs Destroyed . | . . . . . . . . . . . . . . . . Combat | -11 -10 -10 -10 -9 -8 -7 -6 -6 -6 -6 -6 -5 -4 -3 -3 -------- Run | Scr Mat Min Exi Min Mat Fac Fac Ext Cet Arc Hub Fac Fac Res Qua Damage Taken 16626 | . 215 171 . 97 79 623 1328 600 1505 465 1621 1114 72 662 8074 Core 1878 | . 21 33 . 25 14 55 87 43 59 20 139 52 12 53 1265 Absorbed by Shields 85 | . . . . . . . . . . . . 85 . . . Reduced by Siege Mode 28 | . . . . . . . . . . . 28 . . . . Core Remaining (%) 86 | 100 . . . 68 97 92 . . . . 59 94 98 . . Volleys Fired 526 | . 51 21 . 6 6 56 48 43 40 37 62 89 . 28 39 Largest 4 | . 2 2 . 2 2 3 3 3 3 3 3 3 . 4 4 Hottest 255 | . 140 60 . 96 112 157 168 99 168 84 86 105 . 136 255 Shots Fired 1375 | . 91 32 . 12 12 149 140 109 101 111 163 242 . 109 104 Gun 1264 | . 69 32 . 6 2 130 121 99 87 111 163 238 . 109 97 Cannon 59 | . . . . 6 10 11 19 . 6 . . . . . 7 Launcher 12 | . . . . . . . . 4 8 . . . . . . Special 40 | . 22 . . . . 8 . 6 . . . 4 . . . Kinetic 1123 | . 29 21 . . . 94 121 99 58 111 163 238 . 109 80 Thermal 50 | . 22 . . . . 5 . . 5 . . . . . 18 Explosive . | . . . . . . . . . . . . . . . . Electromagnetic 184 | . 40 11 . 12 12 42 19 4 38 . . . . . 6 Robot Hit Streak 52 | . 12 8 . 4 15 24 52 24 22 16 39 31 . 23 28 Robot Miss Streak 4 | . 2 2 . 3 . 2 4 1 2 1 4 2 . 1 2 Penetration Max 2 | . . . . . . 1 1 1 1 . 1 1 . 1 2 Secondary Targets 27 | . 2 2 . . . . 3 1 6 . 3 2 . 5 3 Max Gunslinging Chain 2 | . 1 1 . . . . 1 1 2 . 1 1 . 1 1 Shots Hit Robots 1022 | . 42 24 . 7 11 102 110 83 78 85 125 186 3 89 77 Core Hits 461 | . 19 12 . 3 6 47 48 36 48 34 55 67 1 38 47 Critical Hits 114 | . 2 . . . . 1 3 1 5 2 2 48 . 28 22 Critical Kills 38 | . 2 . . . . . . . 2 1 2 17 . 7 7 Critical Parts Destroyed 72 | . . . . . . 1 2 1 3 . . 30 . 21 14 Melee Attacks 71 | . . . . . . . 31 . 9 . 8 . 7 . 16 Impact . | . . . . . . . . . . . . . . . . Slashing 33 | . . . . . . . . . 9 . 8 . . . 16 Piercing 38 | . . . . . . . 31 . . . . . 7 . . Sneak Attacks 1 | . . . . . . . . . . . . . 1 . . Combat Hostiles . | . . . . . . . . . . . . . . . . Follow-up Attacks . | . . . . . . . . . . . . . . . . Damage Inflicted 27823 | . 710 309 . 166 212 2879 2723 1963 2349 1752 3300 5193 170 2767 3330 Guns 22919 | . 597 301 . 34 23 1916 2359 1745 1589 1752 2751 5193 . 2767 1892 Cannons 1138 | . . . . 73 189 177 364 . 75 . . . . . 260 Explosions 2352 | . 113 . . 59 . 738 . 218 685 . 539 . . . . Melee 1013 | . . . . . . . . . . . . . 170 . 843 Ramming 401 | . . 8 . . . 48 . . . . 10 . . . 335 Kinetic 21264 | . 246 168 . . . 1542 2359 1745 1033 1752 2751 5193 . 2767 1708 Thermal 987 | . 113 . . 59 . 333 . . 96 . . . . . 386 Explosive 419 | . . . . . . 419 . . . . . . . . . Electromagnetic 3739 | . 351 133 . 107 212 537 364 218 1220 . 539 . . . 58 Impact . | . . . . . . . . . . . . . . . . Slashing 843 | . . . . . . . . . . . . . . . 843 Piercing 170 | . . . . . . . . . . . . . 170 . . Highest Corruption 22 | . 1 1 1 1 . 2 10 . . . 12 5 . 5 22 Average Corruption 2 | . 1 1 1 1 . 1 4 . . . 1 2 . 2 7 Corruption Purged 17 | . . . . . . . 11 . . . . 6 . . . Effects 144 | . 2 1 6 4 . 12 57 . . . 11 15 . 11 25 Message Errors 39 | . 1 1 4 2 . 4 15 . . . 4 2 . 3 3 Matter Fused 19 | . . . . . . . 11 . . . 2 3 . . 3 Heat Flow Errors 19 | . . . . . . 1 8 . . . 1 3 . 2 4 Energy Discharges 14 | . 1 . . 1 . 3 5 . . . 1 1 . 2 . Parts Rejected 1 | . . . . . . . 1 . . . . . . . . Data Loss (minor) 25 | . . . 2 1 . 2 9 . . . 1 4 . 3 3 Data Loss (major) 1 | . . . . . . . 1 . . . . . . . . Misfires 2 | . . . . . . . 1 . . . . . . . 1 Alerts 1 | . . . . . . . 1 . . . . . . . . Misdirections 2 | . . . . . . . 2 . . . . . . . . Targeting Errors 18 | . . . . . . 2 2 . . . 2 2 . 1 9 Weapon Failures 3 | . . . . . . . 1 . . . . . . . 2 Overload Shots . | . . . . . . . . . . . . . . . . Overflow Damage 270 | . 27 . . . . 196 35 . 5 . . . . . 7 Projectiles 45 | . . . . . . 10 35 . . . . . . . . Explosions 218 | . 27 . . . . 186 . . 5 . . . . . . Melee 7 | . . . . . . . . . . . . . . . 7 Knockbacks 1 | . . . . . . . . . . . . . . . 1 Impact . | . . . . . . . . . . . . . . . . Kinetic 1 | . . . . . . . . . . . . . . . 1 Secondary . | . . . . . . . . . . . . . . . . Self-Inflicted Damage 135 | . 10 . . . . . . . . . 125 . . . . Shots 3 | . 1 . . . . . . . . . 2 . . . . Rammed 34 | . . 2 . . . 2 . . . . 1 . . . 29 Targets Rammed 35 | . . 2 . . . 2 . . . . 1 . . . 30 Kicked . | . . . . . . . . . . . . . . . . Crushed 1 | . . . . . . . . . . . . . . . 1 Highest Temperature 459 | . 222 27 . 176 57 168 252 331 263 . 152 238 . 309 459 Average Temperature 68 | . 60 12 . 91 26 29 47 81 95 . 41 39 . 89 141 Received Heat Transfer 3666 | . 60 27 . . 27 168 189 294 72 108 465 171 24 114 1947 Effects 6 | . . . . . . . . 2 1 . . . . 1 2 Shutdowns 2 | . . . . . . . . 1 . . . . . . 1 Energy Bleed 1 | . . . . . . . . . 1 . . . . . . Matter Decay 1 | . . . . . . . . 1 . . . . . . . Short Circuit 2 | . . . . . . . . . . . . . . 1 1 Siege Activations 2 | . . . . . . . . . . . 1 1 . . . Total Turns 117 | . . . . . . . . . . . 46 71 . . . Longest Duration 71 | . . . . . . . . . . . 46 71 . . . Robots Corrupted 7 | . . . . . . 1 . . 6 . . . . . . Combat Hostiles 7 | . . . . . . 1 . . 6 . . . . . . Parts Fried 16 | . 2 1 . 1 1 3 3 . 5 . . . . . . Impact Corruptions 1 | . . . . . . . . . . . . . . . 1 Robots Melted . | . . . . . . . . . . . . . . . . Combat Hostiles . | . . . . . . . . . . . . . . . . Parts Melted 6 | . 1 . . . . 1 . 2 . . . . . 2 . Heat Transferred 995 | . 200 . . 100 . 211 . . 148 . . . . . 336 Parts Sabotaged 8 | . . . . . . . . . . . . . . . 8 Parts Stolen . | . . . . . . . . . . . . . . . . Parts Stripped . | . . . . . . . . . . . . . . . . Power Chain Reactions 5 | . 3 . . 1 . 1 . . . . . . . . . Missiles Intercepted . | . . . . . . . . . . . . . . . . Alert | -11 -10 -10 -10 -9 -8 -7 -6 -6 -6 -6 -6 -5 -4 -3 -3 ------- Run | Scr Mat Min Exi Min Mat Fac Fac Ext Cet Arc Hub Fac Fac Res Qua Peak Influence 2108 | . 203 136 . 70 133 541 442 281 323 248 309 460 449 265 2108 Initial 194 | . . 1 . . . 51 20 40 3 64 13 136 194 112 20 Average 134 | . 59 86 . 10 56 207 106 92 153 182 54 105 127 88 1776 Maximum Alert Level 5 | . 1 . . . . 2 2 1 1 1 1 2 2 1 5 Low Security (%) 83 | 100 99 100 . 100 100 52 78 96 83 49 99 88 79 91 . Level 1 11 | . . . . . . 32 15 3 16 50 . 10 10 8 . Level 2 3 | . . . . . . 15 5 . . . . . 10 . . Level 3 . | . . . . . . . . . . . . . . . . Level 4 . | . . . . . . . . . . . . . . . . Level 5 . | . . . . . . . . . . . . . . . . High Security . | . . . . . . . . . . . . . . . . Max Security 1 | . . . . . . . . . . . . . . . 99 Squads Dispatched 76 | . 1 . . . . 12 12 6 1 . 6 11 3 4 20 Investigation 8 | . 1 . . . . 2 1 2 1 . . 1 . . . Extermination 26 | . . . . . . 5 8 . . . 2 6 2 3 . Reinforcement 17 | . . . . . . 2 3 4 . . 4 3 . 1 . Assault 21 | . . . . . . . . . . . . . 1 . 20 Garrison 4 | . . . . . . 3 . . . . . 1 . . . Intercept . | . . . . . . . . . . . . . . . . Construction Impeded 1 | . . . . . . . . 1 . . . . . . . Haulers Reinforced 2 | . . . . . . . . . . . 1 . . 1 . Stealth | -11 -10 -10 -10 -9 -8 -7 -6 -6 -6 -6 -6 -5 -4 -3 -3 --------- Run | Scr Mat Min Exi Min Mat Fac Fac Ext Cet Arc Hub Fac Fac Res Qua Distress Signals 12 | . 1 . . . . . 2 1 1 1 4 . . . 2 Communications Jammed . | . . . . . . . . . . . . . . . . Distress Signals . | . . . . . . . . . . . . . . . . Times Spotted 342 | . 18 11 . 4 6 22 31 27 24 13 48 37 3 20 78 Peak Tracking Total 43 | . 6 3 . 4 2 4 5 4 5 1 14 3 3 5 43 Tactical Retreats 17 | . 2 . . . . 1 3 2 2 . 1 3 . . 3 Traps | -11 -10 -10 -10 -9 -8 -7 -6 -6 -6 -6 -6 -5 -4 -3 -3 ------- Run | Scr Mat Min Exi Min Mat Fac Fac Ext Cet Arc Hub Fac Fac Res Qua Traps Triggered 15 | . 3 . . . . 2 2 3 . . 3 2 . . . Indirectly 1 | . . . . . . . . . . . 1 . . . . Trap Hack Attempts . | . . . . . . . . . . . . . . . . Triggered . | . . . . . . . . . . . . . . . . Disarmed . | . . . . . . . . . . . . . . . . Reprogrammed . | . . . . . . . . . . . . . . . . Reused 1 | . . . . . . . 1 . . . . . . . . Traps Extracted . | . . . . . . . . . . . . . . . . Installed 1 | . . . . . . . 1 . . . . . . . . Triggered 1 | . . . . . . . 1 . . . . . . . . Machines | -11 -10 -10 -10 -9 -8 -7 -6 -6 -6 -6 -6 -5 -4 -3 -3 ---------- Run | Scr Mat Min Exi Min Mat Fac Fac Ext Cet Arc Hub Fac Fac Res Qua Machines Disabled 42 | . 1 . . . . 9 3 5 . 6 15 1 . . 2 Max in Single Turn 7 | . 1 . . . . 4 1 2 . 2 7 1 . . 1 Garrison Access 3 | . . . . . . 1 . . . . . 1 . 1 . Network Hub 2 | . . . . . . . . . . . 2 . . . . Energy Cycler 1 | . . . . . . . . 1 . . . . . . . Machines Sabotaged . | . . . . . . . . . . . . . . . . Garrisons Compromised . | . . . . . . . . . . . . . . . . Overloaded Fab Kills . | . . . . . . . . . . . . . . . . Fab Network Shutdowns 4 | . . . . . . 1 1 . . . . 1 1 . . Hacking | -11 -10 -10 -10 -9 -8 -7 -6 -6 -6 -6 -6 -5 -4 -3 -3 --------- Run | Scr Mat Min Exi Min Mat Fac Fac Ext Cet Arc Hub Fac Fac Res Qua Machines Accessed 62 | . 8 . . . 1 12 11 10 2 . 6 6 3 3 . Terminals 42 | . 8 . . . . 4 6 10 2 . 6 2 2 2 . Fabricators 8 | . . . . . . 4 2 . . . . 1 1 . . Repair Stations 2 | . . . . . 1 . . . . . . 1 . . . Recycling Units 1 | . . . . . . 1 . . . . . . . . . Scanalyzers 4 | . . . . . . 1 2 . . . . 1 . . . Garrison Access 5 | . . . . . . 2 1 . . . . 1 . 1 . Total Hacks 218 | . 19 . . . 2 29 30 27 5 . 19 51 22 14 . Successful 125 | . 15 . . . 2 14 18 16 1 . 11 26 13 9 . Failed 93 | . 4 . . . . 15 12 11 4 . 8 25 9 5 . Catastrophic 12 | . . . . . . 3 . 3 2 . . 2 1 1 . Database Lockouts . | . . . . . . . . . . . . . . . . Manual 67 | . 14 . 1 . . 4 9 6 2 1 6 9 9 6 . Terminals 148 | . 19 . . . . 7 17 27 5 . 19 23 19 12 . Fabricators 28 | . . . . . . 10 6 . . . . 9 3 . . Repair Stations 8 | . . . . . 2 . . . . . . 6 . . . Recycling Units 1 | . . . . . . 1 . . . . . . . . . Scanalyzers 23 | . . . . . . 9 5 . . . . 9 . . . Garrison Access 10 | . . . . . . 2 2 . . . . 4 . 2 . Terminal Hacks 54 | . 9 . . . . 1 9 13 1 . 6 5 6 4 . Record 11 | . . . . . . . 2 1 1 . 3 . . 4 . Robot Schematic 3 | . 1 . . . . . . 1 . . . . 1 . . Robot Analysis 6 | . 3 . . . . . . 1 . . . 1 1 . . Prototype ID Bank 4 | . 1 . . . . . 1 1 . . . 1 . . . Open Door 5 | . . . . . . . . 5 . . . . . . . Branch Access Points 2 | . 1 . . . . . 1 . . . . . . . . Emergency Access Points 3 | . . . . . . . 2 . . . 1 . . . . Terminal Index 1 | . . . . . . . . . . . 1 . . . . Scanalyzer Index 2 | . . . . . . . . . . . . 1 1 . . Alert Level 1 | . . . . . . . . 1 . . . . . . . Unreport Threat 6 | . . . . . . . 2 2 . . . 1 1 . . Locate Traps 5 | . 1 . . . . 1 1 . . . 1 . 1 . . Hauler Manifests 2 | . 1 . . . . . . . . . . 1 . . . Registered Prototypes 1 | . . . . . . . . . . . . . 1 . . Zone Layout 2 | . 1 . . . . . . 1 . . . . . . . Fabricator Hacks 17 | . . . . . . 3 5 . . . . 7 2 . . Load Schematic 5 | . . . . . . 2 2 . . . . 1 . . . Build 12 | . . . . . . 1 3 . . . . 6 2 . . Repair Station Hacks 5 | . . . . . 2 . . . . . . 3 . . . Scan Component 3 | . . . . . 1 . . . . . . 2 . . . Repair 2 | . . . . . 1 . . . . . . 1 . . . Recycling Unit Hacks . | . . . . . . . . . . . . . . . . Scanalyzer 14 | . . . . . . 7 2 . . . . 5 . . . Insert Component 8 | . . . . . . 4 1 . . . . 3 . . . Analyze 6 | . . . . . . 3 1 . . . . 2 . . . Garrison Access Hacks 4 | . . . . . . 1 . . . . . 2 . 1 . Seal Access 3 | . . . . . . 1 . . . . . 1 . 1 . Coupler Status 1 | . . . . . . . . . . . . 1 . . . Unauthorized Hacks 31 | . 6 . . . . 2 2 3 . . 5 4 5 4 . Terminals 28 | . 6 . . . . 1 2 3 . . 5 3 5 3 . Track 10 | . 3 . . . . . . 1 . . 2 1 2 1 . Assimilate 2 | . . . . . . . 1 . . . . . 1 . . Botnet 16 | . 3 . . . . 1 1 2 . . 3 2 2 2 . Fabricators . | . . . . . . . . . . . . . . . . Repair Stations . | . . . . . . . . . . . . . . . . Recycling Units 1 | . . . . . . 1 . . . . . . . . . Tunnel 1 | . . . . . . 1 . . . . . . . . . Scanalyzers . | . . . . . . . . . . . . . . . . Garrison Access 2 | . . . . . . . . . . . . 1 . 1 . Reprogram 2 | . . . . . . . . . . . . 1 . 1 . Data Cores Recovered . | . . . . . . . . . . . . . . . . Used . | . . . . . . . . . . . . . . . . Hacking Detections 55 | . 8 . . . 1 10 11 7 3 . 6 5 2 2 . Full Trace Events 4 | . . . . . . 1 1 1 1 . . . . . . Feedback Events . | . . . . . . . . . . . . . . . . Feedback Blocked . | . . . . . . . . . . . . . . . . Robot Schematics Acquired 3 | . 1 . . . . . . 1 . . . . 1 . . Robots Built 27 | . . . . . . 4 4 . . . . 16 3 . . Matter 1542 | . . . . . . 153 153 . . . . 918 318 . . Time 404 | . . . . . . 40 40 . . . . 240 84 . . Total Robot Build Rating 42 | . . . . . . 4 4 . . . . 16 18 . . Part Schematics Acquired 4 | . . . . . . 2 . . . . . 2 . . . Parts Built . | . . . . . . . . . . . . . . . . Matter . | . . . . . . . . . . . . . . . . Time . | . . . . . . . . . . . . . . . . Total Part Build Rating . | . . . . . . . . . . . . . . . . Parts Repaired 2 | . . . . . 1 . . . . . . 1 . . . Time 81 | . . . . . 44 . . . . . . 37 . . . Parts Recycled . | . . . . . . . . . . . . . . . . Recycled Matter . | . . . . . . . . . . . . . . . . Retrieved Matter . | . . . . . . . . . . . . . . . . Retrieved Components . | . . . . . . . . . . . . . . . . Parts Scanalyzed 7 | . . . . . . 3 1 . . . . 3 . . . Part Schematics Acquired 4 | . . . . . . 2 . . . . . 2 . . . Parts Damaged 1 | . . . . . . 1 . . . . . . . . . Bothacking | -11 -10 -10 -10 -9 -8 -7 -6 -6 -6 -6 -6 -5 -4 -3 -3 ------------ Run | Scr Mat Min Exi Min Mat Fac Fac Ext Cet Arc Hub Fac Fac Res Qua Used RIF Installer . | . . . . . . . . . . . . . . . . Robots Hacked . | . . . . . . . . . . . . . . . . Non-combat . | . . . . . . . . . . . . . . . . Combat . | . . . . . . . . . . . . . . . . Robot Hacks Applied . | . . . . . . . . . . . . . . . . Relay Couplers Released . | . . . . . . . . . . . . . . . . Robots Rewired 13 | . . . . . . . . 13 . . . . . . . Allies Hacked 3 | . . . . . . 1 . . . . . . 1 1 . Hacks Repelled 2 | . . . . . . . . . . . . . 2 . . Allies | -11 -10 -10 -10 -9 -8 -7 -6 -6 -6 -6 -6 -5 -4 -3 -3 -------- Run | Scr Mat Min Exi Min Mat Fac Fac Ext Cet Arc Hub Fac Fac Res Qua Total Allies 59 | . . 2 . 3 . 4 5 19 . . . 18 4 4 . Largest Group 18 | . . 2 . 3 3 4 3 9 . . . 18 18 12 . Highest-Rated Group 270 | . . 45 . 40 40 40 26 270 . . . 138 224 192 . Highest-Rated Ally 47 | . . 31 . 16 16 16 26 37 . . . 29 30 47 . Total Orders 1 | . . . . . . . 1 . . . . . . . . EXPLORE 1 | . . . . . . . 1 . . . . . . . . Ally Attacks 456 | . . 7 . . 5 32 29 194 . . . 16 91 82 . Total Damage 5888 | . . 123 . . 66 276 181 3214 . . . 230 666 1132 . Kills 47 | . . 2 . . 2 3 1 25 . . . 2 7 5 . Allies Corrupted 2 | . . . . . . . . . . . . . . 2 . Allies Melted 2 | . . . . . . . . 1 . . . . . 1 . Intel | -11 -10 -10 -10 -9 -8 -7 -6 -6 -6 -6 -6 -5 -4 -3 -3 ------- Run | Scr Mat Min Exi Min Mat Fac Fac Ext Cet Arc Hub Fac Fac Res Qua Robot Analysis Total 6 | . 3 . . . . . . 1 . . . 1 1 . . Derelict Logs Recovered 3 | . . 1 . 2 . . . . . . . . . . . Drone Launches 2 | . . . . . . . 2 . . . . . . . . Drone Recoveries . | . . . . . . . . . . . . . . . . Exploration | -11 -10 -10 -10 -9 -8 -7 -6 -6 -6 -6 -6 -5 -4 -3 -3 ------------- Run | Scr Mat Min Exi Min Mat Fac Fac Ext Cet Arc Hub Fac Fac Res Qua Turns Passed 23289 | 62 1560 843 846 1162 738 3169 3397 2074 886 441 2055 3411 889 1376 380 Spaces Moved 10230 | 48 837 464 491 602 276 1509 1484 954 363 171 749 1327 407 497 51 Core 12 | 8 . . . . . . . 3 . . . . . . 1 Treads 9877 | . 541 464 486 602 276 1509 1484 951 363 171 749 1327 407 497 50 Legs 5 | . . . 5 . . . . . . . . . . . . Wheels 336 | 40 296 . . . . . . . . . . . . . . Hover . | . . . . . . . . . . . . . . . . Flight . | . . . . . . . . . . . . . . . . Fastest Speed 50 | 50 100 160 160 180 175 175 175 183 180 180 180 160 180 180 180 Average Speed 174 | 91 147 160 169 180 178 175 178 191 185 181 180 166 180 180 227 Slowest Speed 2400 | 100 200 160 180 180 180 175 183 2400 203 200 180 180 180 180 2400 Overloaded Moves . | . . . . . . . . . . . . . . . . Propulsion Burnouts . | . . . . . . . . . . . . . . . . Robots Hopped . | . . . . . . . . . . . . . . . . Cave-ins Triggered 3 | . . . . . . . 2 . . . 1 . . . . Exploration Rate (%) 53 | 3 98 91 90 93 23 36 43 95 78 98 47 30 9 13 10 Regions Visited 15 Branch Regions 8 Pre-discovered Areas 2 | . . . . 1 . 1 . . . . . . . . . Known Exits Taken 3 | . 1 1 . . . . 1 . . . . . . . . Unknown Exits Taken 12 | 1 . . 1 1 1 1 . 1 1 1 1 1 1 1 . Scrap Searched 3 | . . 1 . 2 . . . . . . . . . . . Spaces Dug 55 | . 21 . . . . . 17 . 5 . 8 . 4 . . Terrain Destroyed 562 | . 30 . . 6 . 86 18 13 6 3 327 68 4 . 1 Melee 34 | . . . . . . . 17 . 5 . 8 . 4 . . Projectile 103 | . 21 . . . . 4 1 4 1 3 . 68 . . 1 AOE 425 | . 9 . . 6 . 82 . 9 . . 319 . . . . Terrain Rammed . | . . . . . . . . . . . . . . . . Walls Destroyed . | . . . . . . . . . . . . . . . . Machines Disabled . | . . . . . . . . . . . . . . . . Actions | -11 -10 -10 -10 -9 -8 -7 -6 -6 -6 -6 -6 -5 -4 -3 -3 --------- Run | Scr Mat Min Exi Min Mat Fac Fac Ext Cet Arc Hub Fac Fac Res Qua Total 14416 | 64 1027 532 504 670 509 1928 2077 1116 481 218 1314 2338 555 909 174 Wait 2965 | . 93 36 . 56 211 298 443 9 1 . 473 865 131 342 7 Move 10215 | 47 836 463 490 601 275 1508 1483 953 362 170 748 1326 406 496 51 Hop . | . . . . . . . . . . . . . . . . Pick Up 145 | 10 19 3 6 3 7 20 17 2 21 2 4 18 5 7 1 Fast Attach 36 | 2 2 1 1 . . 2 2 3 2 1 . 7 . 11 2 Attach 64 | 4 . . 1 . 6 2 7 1 9 . 3 3 2 3 23 Detach 2 | . . . . . . . . 1 . . . . . 1 . Swap 131 | 1 15 2 3 1 3 19 25 8 21 5 9 11 . 6 2 Drop 130 | . 11 4 3 3 1 19 16 7 16 3 6 19 4 15 3 Fire 526 | . 51 21 . 6 6 56 48 43 40 37 62 89 . 28 39 Melee 71 | . . . . . . . 31 . 9 . 8 . 7 . 16 Ram . | . . . . . . . . . . . . . . . . Kick . | . . . . . . . . . . . . . . . . Crush 35 | . . 2 . . . 2 . . . . 1 . . . 30 Escape Stasis 12 | . . . . . . 2 4 6 . . . . . . . Rewire 83 | . . . . . . . . 83 . . . . . . . Trap 1 | . . . . . . . 1 . . . . . . . . Miscellaneous . | . . . . . . . . . . . . . . . . Route ------- -11/Scrapyard -10/Materials (discovered 4 exits: [*Mat x3] / *Min) -10/Mines (discovered 3 exits: [*Mat x2] / *Exi) -10/Exiles (discovered 2 exits: [*Min x2]) -9/Mines (discovered 2 exits: *Mat x2) -8/Materials -7/Factory (discovered 2 exits: *Fac x2) -6/Factory (discovered 6 exits: *Fac x2 / *Low x2 / *Ext x2) -6/Extension (discovered 3 exits: *Fac x2 / *Cet) -6/Cetus (discovered 3 exits: *Fac x2 / *Arc) -6/Archives (discovered 3 exits: *Fac / *Hub x2) -6/Hub_04(d) (discovered 2 exits: *Fac x2) -5/Factory (discovered 2 exits: *Fac x2) -4/Factory -3/Research -3/Quarantine History --------- Turn | Location | Event 2 | -11/Scrapyard | Met Revision 17 8 | -11/Scrapyard | Discovered new exit (range 15) 63 | -11/Scrapyard | Entered Materials 103 | -10/Materials | Identified exit to Mines 315 | -10/Materials | Build established: Mutant 734 | -10/Materials | Discovered new exit (range 4) 797 | -10/Materials | Discovered new exit (range 16) 892 | -10/Materials | Discovered new exit (range 14) 1623 | -10/Materials | Entered Mines 1703 | -10/Mines | Discovered new exit (range 3) 1877 | -10/Mines | Identified exit to Exiles 2152 | -10/Mines | Discovered new exit (range 2) 2241 | -10/Mines | Deemed a non-threat by the Exiles lab entrance 2466 | -10/Mines | Entered Exiles 2490 | -10/Exiles | Discovered new exit (range 15) 2508 | -10/Exiles | Met 8R-AWN 2535 | -10/Exiles | Met EX-HEX 2625 | -10/Exiles | Met EX-DEC 2650 | -10/Exiles | Visited The Gauntlet 3042 | -10/Exiles | Met EX-BIN 3068 | -10/Exiles | Aligned with FarCom system 3069 | -10/Exiles | Given EX-Vault access code 3113 | -10/Exiles | Opened EX-Vault 3124 | -10/Exiles | Found Prototype Leg 3124 | -10/Exiles | Identified Potential Leg 3136 | -10/Exiles | Found Potential Leg 3179 | -10/Exiles | Warned to stay clear of 0b10 Research branches 3191 | -10/Exiles | Exiles lab attacked by MAIN.C 3213 | -10/Exiles | Build established: Hauler-Mutant 3287 | -10/Exiles | Discovered new exit (range 14) 3312 | -10/Exiles | Left Exiles lab with Potential Leg 3312 | -10/Exiles | Entered Mines 3324 | -9/Mines | Met a Derelict bent on vengeance 3347 | -9/Mines | Learned Materials garrison access intel 3662 | -9/Mines | Learned location of Storage (-9) 3908 | -9/Mines | A weapon hastily lodged in a ceiling crevice suddenly fell to the ground 3924 | -9/Mines | Discovered new exit (range 15) 4166 | -9/Mines | Found a hidden stash of uninstalled traps 4291 | -9/Mines | Discovered new exit (range 10) 4394 | -9/Mines | Assisted by bots powering up and referring to "LRC-V3" 4474 | -9/Mines | Entered Materials 4474 | -8/Materials | Accompanied by 3 allies 4474 | -8/Materials | Evolved 4 slots: Propulsion x1, Utility x3 4475 | -8/Materials | Loaded intel: 1 garrison access location 4685 | -8/Materials | Repaired Broken Imp. Treads 5066 | -8/Materials | Discovered new exit (range 9) 5212 | -8/Materials | Entered Factory 5212 | -7/Factory | Accompanied by 3 allies 5212 | -7/Factory | Evolved 2 slots: Utility x1, Weapon x1 5548 | -7/Factory | Discovered new exit (range 10) 5869 | -7/Factory | Build established: Hauler-Skirmisher 6111 | -7/Factory | Local fabrication network quarantined 6140 | -7/Factory | Fabricated S-10 Pest (x4) 6872 | -7/Factory | Garrison activated, responded to threat 7629 | -7/Factory | Discovered new exit (range 9) 8381 | -7/Factory | Entered another Factory area 8381 | -6/Factory | Evolved 2 slots: Utility x2 8438 | -6/Factory | Spotted B-75 Beast 8604 | -6/Factory | Crushed by falling debris 8635 | -6/Factory | Discovered new exit (range 23) 9086 | -6/Factory | Fabricated S-10 Pest? 9380 | -6/Factory | Local fabrication network quarantined 9444 | -6/Factory | Discovered new exit (range 19) 9632 | -6/Factory | Crushed by falling debris 9678 | -6/Factory | System corruption reached 10% 9766 | -6/Factory | Discovered new exit (range 10) 9995 | -6/Factory | Build established: Hauler-Tank 10495 | -6/Factory | Discovered new exit (range 15) 10856 | -6/Factory | Discovered new exit (range 8) 11048 | -6/Factory | Identified exit to Lower Caves 11048 | -6/Factory | Identified exit to Extension 11778 | -6/Factory | Entered Extension 11844 | -6/Extension | Rescued a captive Derelict 11845 | -6/Extension | Rescued a captive Derelict 11873 | -6/Extension | Rescued a captive Derelict 11931 | -6/Extension | Rescued a captive Derelict 11960 | -6/Extension | Rescued a captive Derelict 11961 | -6/Extension | Rescued a captive Derelict 12504 | -6/Extension | Energy Cycler disabled 12504 | -6/Extension | Rescued a captive Derelict 12504 | -6/Extension | Rescued a captive Derelict 12505 | -6/Extension | Rescued a captive Derelict 12505 | -6/Extension | Rescued a captive Derelict 12510 | -6/Extension | Rescued a captive Derelict 12511 | -6/Extension | Rescued a captive Derelict 12610 | -6/Extension | Build established: Commander-Tank 12830 | -6/Extension | Spotted B-75 Beast 12841 | -6/Extension | Allies destroyed B-75 Beast 12859 | -6/Extension | Discovered new exit (range 16) 12859 | -6/Extension | Spotted B-75 Beast 12861 | -6/Extension | Extracted ID and sensor layout for unrecognized location from A7's data core 12870 | -6/Extension | Allies destroyed B-75 Beast 12978 | -6/Extension | Disrupted transfer network 13562 | -6/Extension | Discovered new exit (range 10) 13564 | -6/Extension | Discovered new exit (range 6) 13700 | -6/Extension | Build established: Hauler-Skirmisher 13852 | -6/Extension | Entered Cetus 13882 | -6/Cetus | Spotted Cetus Guard 13882 | -6/Cetus | Spotted Cetus Guard 13893 | -6/Cetus | Destroyed Cetus Guard 13893 | -6/Cetus | Spotted Cetus Guard 13893 | -6/Cetus | Spotted Cetus Guard 13906 | -6/Cetus | Destroyed Cetus Guard 13920 | -6/Cetus | Destroyed Cetus Guard 13933 | -6/Cetus | Destroyed Cetus Guard 14098 | -6/Cetus | Discovered new exit (range 16) 14253 | -6/Cetus | Build established: Hauler-Tank 14490 | -6/Cetus | Discovered new exit (range 15) 14525 | -6/Cetus | Spotted Cetus Guard 14525 | -6/Cetus | Spotted Cetus Guard 14535 | -6/Cetus | Destroyed Cetus Guard 14535 | -6/Cetus | Spotted Cetus Guard 14540 | -6/Cetus | Destroyed Cetus Guard 14542 | -6/Cetus | Destroyed Cetus Guard 14551 | -6/Cetus | Spotted Cetus Guard 14554 | -6/Cetus | Destroyed Cetus Guard 14561 | -6/Cetus | Discovered new exit (range 15) 14571 | -6/Cetus | Met Revision 17 14738 | -6/Cetus | Entered Archives 14883 | -6/Archives | Build established: Scavenger-Tank 14953 | -6/Archives | Unable to access archive contents 14981 | -6/Archives | Discovered new exit (range 14) 15084 | -6/Archives | Unable to access archive contents 15091 | -6/Archives | Discovered new exit (range 13) 15143 | -6/Archives | Discovered new exit (range 16) 15179 | -6/Archives | Entered Hub_04(d) 15356 | -6/Hub_04(d) | Build established: Scavenger-Skirmisher 15458 | -6/Hub_04(d) | Discovered new exit (range 10) 16962 | -6/Hub_04(d) | Build established: Hauler-Skirmisher 17035 | -6/Hub_04(d) | Crushed by falling debris 17153 | -6/Hub_04(d) | Discovered new exit (range 14) 17187 | -6/Hub_04(d) | Network Hub disabled 17224 | -6/Hub_04(d) | Spotted Lightning 17224 | -6/Hub_04(d) | Spotted Lightning 17226 | -6/Hub_04(d) | Network Hub disabled 17226 | -6/Hub_04(d) | Spotted Lightning 17226 | -6/Hub_04(d) | Spotted Lightning 17226 | -6/Hub_04(d) | Spotted Lightning 17228 | -6/Hub_04(d) | Spotted Lightning 17234 | -6/Hub_04(d) | Entered Factory 17234 | -5/Factory | Evolved 2 slots: Propulsion x1, Utility x1 17301 | -5/Factory | Repaired Quantum Reactor 17523 | -5/Factory | Build established: Scavenger-Skirmisher 17898 | -5/Factory | Spotted B-75 Beast 19216 | -5/Factory | Discovered new exit (range 7) 19917 | -5/Factory | Build established: Scavenger-Tank 20230 | -5/Factory | Garrison activated, responded to threat 20320 | -5/Factory | Discovered new exit (range 15) 20424 | -5/Factory | Fabricated S-10 Pest (x4) 20464 | -5/Factory | Fabricated S-10 Pest (x4) 20504 | -5/Factory | Fabricated S-10 Pest (x4) 20544 | -5/Factory | Fabricated S-10 Pest (x4) 20617 | -5/Factory | Local fabrication network quarantined 20645 | -5/Factory | Entered another Factory area 20645 | -4/Factory | Accompanied by 18 allies 20645 | -4/Factory | Evolved 2 slots: Utility x1, Weapon x1 21027 | -4/Factory | Build established: Commander-Mutant 21349 | -4/Factory | Local fabrication network quarantined 21370 | -4/Factory | Fabricated B-60 Warrior (x3) 21437 | -4/Factory | First assault squad dispatched 21439 | -4/Factory | Discovered new exit (range 15) 21534 | -4/Factory | Entered Research 21534 | -3/Research | Accompanied by 12 allies 21534 | -3/Research | Evolved 2 slots: Power x1, Utility x1 22165 | -3/Research | Build established: Scavenger-Skirmisher 22681 | -3/Research | P-80 Master assimilated allied G-67 Veteran 22809 | -3/Research | Found Prototype Slashing Weapon 22809 | -3/Research | Identified Centrium Greatsword 22840 | -3/Research | Discovered new exit (range 13) 22910 | -3/Research | Entered Quarantine 22911 | -3/Quarantine | Maximum security lockdown engaged 23177 | -3/Quarantine | Lost 3 parts (3u) 23253 | -3/Quarantine | System corruption reached 10% 23267 | -3/Quarantine | Spotted Executioner 23267 | -3/Quarantine | Spotted Executioner 23269 | -3/Quarantine | Spotted Investigator 23274 | -3/Quarantine | Core integrity fell below 50% 23282 | -3/Quarantine | Destroyed 7 combat bots 23285 | -3/Quarantine | Core integrity fell below 20% 23290 | -3/Quarantine | Destroyed by G-73 Enforcer with Phase Gun Last Messages --------------- Destroyed Plasma Rifle. Enh. Gauss Cannon destroyed. P-80 Master resets G-67 Veteran, system corruption cleaned. Lrn. Missile Launcher destroyed. G-67 Veteran destroyed. System corrupted: Heat flow error (+155). Investigator: "PRIMARY THREAT IDENTIFIED. CONTAINMENT PROTOCOL APPLICABLE." P-80 Master resets G-67 Veteran, system corruption cleaned. C-30 ARC bursts open, deploying its payload. G-67 Veteran unfolds itself. Imp. System Shield destroyed. Energy Well destroyed. G-67 Veteran suffers critical hit. G-73 Enforcer suffers critical hit. Hcp. Storage Unit destroyed. System corrupted: Component data lost. Hcp. Storage Unit destroyed. Imp. Component Analysis Suite destroyed. [Achievement: 20k Club] Map ----- +----------------------------------------------------+ | | | | | | | | | ???????????????????????????????????? | | ???????????????????????????????????? | | ???????????????????????????????????? | | ???????????????????????????????????? | | ???????????????????????????????????? | | ???????????????????????????????????? | | ???????????????????????????????????? | | ???????????????????????????????????? | | ???????????????????????????????????? | | ???????????????????????????????????? | | ??????????#####????????????????????? | | ??????????#| ????????????????????? | | ??????????# """???????????????????? | | ??????????# """#??????????????????? | | ??????????# """#??????????????????? | | ??????????# %"""#??????????????????? | | ###########%%"""#??????????????????? | | # ##=="""#??????????????????? | | # """ ##!p"%*#??????????????????? | | # "!" ##!gbl=#??????????????????? | | # """ ##%gg*!######?????????????? | | # "" ##@g=[i# #?????????????? | | # ##gggp[# = #?????????????? | | # "" ####c###[ * #?????????????? | | # "" # %gEEgbi= #?????????????? | | # " " +!=bggl% #?????????????? | | # """ # =%g!%= #?????????????? | | # # !% %% #?????????????? | | # ##"#+### % #?????????????? | | # # ????# % #?????????????? | | # # "????# %#?????????????? | | # # "????+ %%"????????????? | | # # ?????# %%"??g????????? | | # # ?????# %%"??l???????? | | # # ?????# " ?????????? | | ##########??????########+#?????????? | | ???????????????????????????????????? | | ???????????????????????????????????? | | ???????????????????????????????????? | | ???????????????????????????????????? | | ???????????????????????????????????? | | ???????????????????????????????????? | | ???????????????????????????????????? | | ???????????????????????????????????? | | ???????????????????????????????????? | | ???????????????????????????????????? | +----------------------------------------------------+ Best States ------------- Heat Dissipation 65 Energy Generation 53 Energy Capacity 900 Matter Stores 300 Matter Capacity 450 Sight Range 22 Terrain Scan Range 24 Terrain Scan Density 285 Corruption Prevention 12 Armor Coverage 600 Resistance: KI 20 Resistance: TH 40 Resistance: EX 20 Resistance: EM 45 Resistance: I 20 Resistance: S 20 Resistance: P 20 Core Shielding 30 Weapon Shielding 33 Phase Shifting 10 Evasion (%) 50 Target Analysis 8 Core Analysis 10 Recoil Reduction 4 Offensive Hacking 22 Defensive Hacking 12 Item Schematics ----------------- Mak. Leg | -7/Factory | Scanalyzed System Shield | -7/Factory | Scanalyzed Centrium Heavy Treads | -5/Factory | Scanalyzed Centrium Medium Armor Plating | -5/Factory | Scanalyzed Robot Schematics ------------------ S-10 Pest | -10/Materials | Hacked A-15 Conveyor | -6/Extension | Hacked A-02 Transporter | -4/Factory | Hacked Fabricated ------------ S-10 Pest | x4 | -7/Factory S-10 Pest | x4 | -6/Factory S-10 Pest | x4 | -5/Factory S-10 Pest | x4 | -5/Factory S-10 Pest | x4 | -5/Factory S-10 Pest | x4 | -5/Factory B-60 Warrior | x3 | -4/Factory | Preloaded Alien Tech Used ----------------- None Achievements -------------- 20k Club Gunslinger Left-hand Path Oh No You Don't! Revising The Future Rockin' Loadout War Machine Challenges ------------ None Game ------ Seed CloakingExplosiveThrusters Manual? 0 Play Time 04:18:19 Cumulative 87.6 hours Start 2020.11.20 @ 15:30:13 End 2020.11.21 @ 05:16:51 Sessions 3 Manual Loads 0 Difficulty Adventurer Special Mode Halloween2020/ForbiddenLore Game No. 84 Rogue 72 Adventurer 12 Explorer 0 Win Type - Total 0 Types 0/0/0/0/0/0/0/0/0 Lore% 36 Gallery% 48 Achievement% 33 Wizard Run 0 Options --------- ASCII 0 Keyboard 0 Movement Mouse Keybinds 0 Fullscreen 1 Font 18/SmallcapsGlow Map View 76x50 Tactical HUD 0 Map Filters NONE Filters NONE Steam 1 RUN: b3f4332a-2825-46a5-a9b5-b945b3cdaf7d